bitfinex/quotes_ETHUSD_20250529
["timestamp","ask_amount","ask_price","bid_price","bid_amount"]
[1748525457631,1.0685,2685.1,2683.9,1.84440574]
[1748525457632,3.77454614,2684.9,2683.9,1.84440574]
[1748525457950,3.77454614,2684.9,2683.8,8.0]
[1748525457951,3.72477702,2684.8,2684.0,1.84836862]
[1748525458200,0.05,2684.9,2684.0,1.84836862]
[1748525458201,3.77463524,2684.9,2684.0,1.84836862]
[1748525458404,3.72468338,2684.8,2684.0,1.84836862]
[1748525458547,3.77460146,2684.9,2684.0,1.84836862]
[1748525458743,4.10217283,2684.8,2684.0,1.84836862]
[1748525459005,3.72516162,2684.5,2684.0,1.84836862]
[1748525459208,3.72489663,2684.7,2684.0,1.84836862]
[1748525459354,3.72496517,2684.6,2684.0,1.84836862]
[1748525459774,0.37746015,2684.8,2684.1,0.85712261]
[1748525459995,3.7247982,2684.8,2684.1,0.85712261]
[1748525460157,3.72484204,2684.7,2684.1,0.85712261]
[1748525460687,0.9867,2684.8,2684.1,0.85712261]
[1748525460889,0.05,2684.9,2684.1,0.85712261]
[1748525460890,4.7122048,2684.2,2684.1,0.85712261]
[1748525461199,3.72638345,2683.6,2683.1,0.36900327]
[1748525461410,3.72637054,2683.6,2682.8,2.92166862]
[1748525461569,1.0067,2683.5,2682.8,2.92166862]
[1748525461792,4.73321217,2683.5,2682.8,2.92166862]
[1748525461971,1.0067,2683.5,2682.9,8.0]
[1748525462486,0.35188836,2684.2,2683.2,1.84836862]
[1748525462717,3.72572588,2684.1,2683.2,1.84836862]
[1748525463022,4.70751175,2684.2,2683.2,1.84836862]
[1748525463023,0.982,2684.2,2683.2,1.84836862]
[1748525463187,3.7262762,2683.7,2683.1,0.37317571]
[1748525463366,3.72578241,2684.0,2683.0,1.84836862]
[1748525463573,3.72624425,2683.7,2683.3,1.04016516]
[1748525463771,3.72652425,2683.5,2683.3,1.04016516]
[1748525464016,4.2759713,2683.9,2683.3,1.04016516]
[1748525464017,0.55,2683.9,2683.3,1.04016516]
[1748525464213,1.0179,2684.0,2683.3,1.04016516]
[1748525464435,1.0179,2684.0,2683.5,1.84836862]
[1748525464631,1.0179,2684.0,2683.3,1.04016516]
[1748525464932,3.72549843,2684.3,2683.6,1.04004888]
[1748525465124,3.72520105,2684.5,2683.6,1.04004888]
[1748525465425,0.992,2684.6,2683.6,1.04004888]
[1748525465426,4.71697552,2684.6,2683.6,1.04004888]
[1748525465625,4.12696294,2684.9,2683.6,1.04004888]
[1748525465626,0.05,2684.9,2684.2,1.84836862]
[1748525465784,0.05,2684.9,2684.8,1.84836862]
[1748525466185,0.05,2684.9,2684.8,10.88795264]
[1748525467185,0.05,2684.9,2684.8,11.2638054]
[1748525468332,0.05,2684.9,2684.8,12.49357594]
[1748525468702,0.05,2684.9,2684.8,11.2638054]
[1748525469030,0.05,2684.9,2684.8,5.25746348]
[1748525469197,0.05,2684.9,2684.8,0.37585276]
[1748525469408,0.05,2684.9,2684.7,1.84836862]
[1748525470123,0.05,2684.9,2684.7,2.22562459]
[1748525470332,0.05,2685.9,2685.0,3.72436828]
[1748525470645,0.05,2685.9,2685.4,1.84836862]
[1748525470942,0.9915,2685.8,2684.7,0.37725597]
[1748525471298,0.9915,2685.8,2685.0,1.84836862]
[1748525471538,3.72352984,2685.7,2685.0,1.84836862]
[1748525471898,0.9915,2685.8,2685.0,1.84836862]
[1748525472757,0.9915,2685.8,2685.1,10.0]
[1748525473086,0.9915,2685.8,2685.1,10.78665477]
[1748525473200,0.9915,2685.8,2685.2,0.78662547]
[1748525473537,4.71479201,2685.8,2685.2,0.78662547]
[1748525473712,3.72380881,2685.5,2685.2,0.78662547]
[1748525474199,3.72397869,2685.3,2685.2,0.78662547]
[1748525474407,3.72390015,2685.4,2685.2,0.78662547]
[1748525474739,3.72395039,2685.4,2685.2,0.78662547]
[1748525474920,3.72370135,2685.5,2685.2,0.78662547]
[1748525475125,3.72397869,2685.3,2685.2,0.78662547]
[1748525475438,4.27370135,2685.5,2685.2,0.78662547]
[1748525475622,3.72393778,2685.4,2685.2,0.78662547]
[1748525476714,0.55,2685.5,2685.2,0.78662547]
[1748525476913,4.27374182,2685.5,2685.2,0.78662547]
[1748525477218,3.72363402,2685.6,2685.2,0.78662547]
[1748525478735,8.73086033,2685.8,2685.2,0.78662547]
[1748525478938,3.72350415,2685.7,2685.2,0.78662547]
[1748525479142,3.7236002,2685.6,2685.2,0.78662547]
[1748525479346,3.72374731,2685.5,2685.2,0.78662547]
[1748525479652,0.55,2685.5,2685.2,0.78662547]
[1748525479844,3.72411738,2685.2,2684.2,1.0512]
[1748525480017,3.72439478,2685.0,2684.2,1.0512]
[1748525480348,4.016,2685.1,2684.2,1.0512]
[1748525480532,3.72448906,2685.0,2684.2,1.0512]
[1748525480759,3.7245562,2684.9,2684.2,1.0512]
[1748525481468,1.0297,2684.9,2684.2,0.37741676]
[1748525481673,1.0297,2684.9,2683.6,1.84753428]
[1748525481674,0.55,2684.8,2683.6,1.84753428]
[1748525481824,3.72534631,2684.4,2683.6,1.84753428]
[1748525482028,3.72534631,2684.4,2683.6,9.84904193]
[1748525482275,7.74115067,2684.5,2683.6,1.84904193]
[1748525482568,1.0297,2684.9,2683.6,1.84904193]
[1748525482569,1.0297,2684.9,2684.0,1.84904193]
[1748525482776,4.016,2684.7,2684.0,1.84904193]
[1748525483189,3.72473213,2684.8,2684.0,1.84904193]
[1748525483483,6.1597,2684.9,2684.0,1.84904193]
[1748525483644,3.72467492,2684.8,2684.1,0.9905]
[1748525484087,3.72489296,2684.7,2684.1,0.9905]
[1748525484264,3.72471846,2684.8,2684.1,0.9905]
[1748525484447,9.88425454,2684.9,2684.1,0.9905]
[1748525484852,1.0502,2684.7,2683.9,0.69893654]
[1748525485067,3.72578241,2684.0,2683.9,0.69893654]
[1748525485278,1.0502,2684.1,2683.9,0.69893654]
[1748525485462,8.79105496,2684.7,2683.9,0.69893654]
[1748525485669,3.72545731,2684.3,2683.9,0.69893654]
[1748525485870,3.72578241,2684.0,2683.9,0.69893654]
[1748525486071,3.72559522,2684.2,2683.9,0.69893654]
[1748525486270,1.0205,2684.3,2683.9,0.69893654]
[1748525486476,3.72443829,2685.0,2683.9,0.69893654]
[1748525486671,6.1651,2684.9,2684.0,1.012]
[1748525487063,4.016,2684.8,2684.0,1.012]
[1748525487553,7.74078926,2684.8,2684.0,1.012]
[1748525487751,3.72478926,2684.8,2684.0,1.012]
[1748525488063,9.89065922,2684.9,2684.0,1.012]
[1748525488268,1.34522231,2684.9,2684.2,1.84904193]
[1748525488475,0.31012231,2684.9,2684.2,1.84904193]
[1748525488657,4.03466621,2684.9,2684.2,1.84904193]
[1748525488858,0.31012231,2684.9,2684.0,1.012]
[1748525489061,3.72508847,2684.5,2683.9,0.69893654]
[1748525489386,3.72550158,2684.3,2683.9,0.69893654]
[1748525489695,3.72543555,2684.3,2683.9,0.69893654]
[1748525489880,8.80853492,2684.7,2683.9,0.69893654]
[1748525490082,3.72503787,2684.6,2683.9,0.69893654]
[1748525490283,3.72495609,2684.6,2683.9,0.69893654]
[1748525490462,3.72511576,2684.5,2683.9,0.69893654]
[1748525490659,3.72495099,2684.6,2683.9,0.69893654]
[1748525490867,8.80854888,2684.7,2683.9,0.69893654]
[1748525491071,5.0837,2684.7,2683.9,0.69893654]
[1748525491277,3.72498344,2684.6,2683.9,0.69893654]
[1748525491474,3.7250213,2684.6,2683.9,0.69893654]
[1748525491698,3.72509465,2684.5,2683.9,0.69893654]
[1748525492286,3.72519818,2684.5,2683.9,0.69893654]
[1748525492466,3.72497703,2684.6,2683.9,0.69893654]
[1748525492900,5.0837,2684.7,2683.9,0.69893654]
[1748525493209,8.80858701,2684.7,2683.9,0.69893654]
[1748525493416,3.7249785,2684.6,2683.9,0.69893654]
[1748525493616,3.72494971,2684.6,2683.9,0.69893654]
[1748525493913,5.0837,2684.7,2683.9,0.69893654]
[1748525494784,8.80855925,2684.7,2683.9,0.69893654]
[1748525495126,3.72508487,2684.6,2683.9,0.69893654]
[1748525495320,3.72518549,2684.5,2683.9,0.69893654]
[1748525495639,8.80856525,2684.7,2683.9,0.69893654]
[1748525495640,0.55,2684.6,2683.9,0.69893654]
[1748525495817,3.7255769,2684.2,2683.9,0.69893654]
[1748525496334,4.27578241,2684.0,2683.9,0.69893654]
[1748525496484,8.29278241,2684.0,2683.9,0.69893654]
[1748525496924,7.74278241,2684.0,2683.9,0.69893654]
[1748525497228,8.642531,2684.0,2683.2,1.84904193]
[1748525497435,4.625531,2683.9,2683.2,1.84904193]
[1748525498116,7.74286925,2684.0,2683.2,1.84904193]
[1748525498117,4.625531,2683.7,2683.2,1.84904193]
[1748525498513,8.35174788,2683.7,2683.2,1.84904193]
[1748525498844,3.72621688,2683.7,2683.2,1.84904193]
[1748525499078,0.55,2683.7,2682.6,1.05138028]
[1748525499207,3.72701089,2683.2,2683.0,0.37576204]
[1748525499411,4.625531,2683.1,2682.6,0.62988458]
[1748525499706,3.72703428,2683.1,2682.6,0.62988458]
[1748525500019,3.72727477,2683.0,2682.6,0.62988458]
[1748525500221,4.625531,2682.9,2682.6,0.62988458]
[1748525500605,4.625531,2683.1,2682.6,0.62988458]
[1748525500810,4.625531,2683.0,2682.6,0.62988458]
[1748525501231,0.55,2682.8,2682.6,0.62988458]
[1748525501437,12.92011887,2682.7,2682.6,0.62988458]
[1748525501956,14.03411887,2682.7,2682.6,0.62988458]
[1748525502327,4.625531,2683.0,2682.6,0.62988458]
[1748525502511,8.90311887,2682.7,2682.6,0.62988458]
[1748525502707,9.88771887,2682.7,2682.6,0.62988458]
[1748525504363,6.160131,2682.7,2682.6,0.62988458]
[1748525504703,1.114,2683.0,2682.6,0.62988458]
[1748525505182,8.0,2683.9,2682.8,9.0098]
[1748525505183,0.9712,2683.8,2682.8,9.0098]
[1748525505385,4.93565331,2683.7,2682.8,9.7787491]
[1748525505684,0.31012231,2683.6,2682.8,13.5060954]
[1748525505837,0.31012231,2683.6,2682.8,9.7787491]
[1748525506452,4.625531,2683.5,2682.8,9.7787491]
[1748525506648,0.31012231,2683.4,2682.9,1.1627791]
[1748525506978,0.31012231,2683.4,2682.8,9.7787491]
[1748525508464,0.31012231,2683.4,2683.1,1.84904193]
[1748525509496,0.55,2684.4,2683.1,1.84904193]
[1748525509497,1.0536,2684.7,2683.3,0.9767]
[1748525509656,7.74331212,2684.4,2683.6,1.84904193]
[1748525509861,1.114,2684.6,2683.6,1.84904193]
[1748525510063,0.55,2684.4,2683.3,1.34708002]
[1748525510270,3.72545286,2684.3,2683.3,1.34708002]
[1748525510476,4.779228,2684.2,2683.3,0.37038002]
[1748525510684,0.55,2684.0,2683.0,0.9767]
[1748525510888,4.018,2683.9,2683.0,0.9767]
[1748525511087,3.72626979,2683.7,2683.0,0.9767]
[1748525511291,3.72636855,2683.6,2683.0,0.9767]
[1748525511506,7.74395239,2683.9,2683.0,0.9767]
[1748525512110,3.72613526,2683.8,2683.0,0.9767]
[1748525512322,4.017,2683.7,2683.0,0.9767]
[1748525512489,4.017,2683.7,2683.1,1.84904193]
[1748525512889,3.72647023,2683.6,2683.1,1.84904193]
[1748525513332,3.72661548,2683.4,2682.7,0.9743]
[1748525513539,1.0033,2683.6,2682.7,0.9743]
[1748525513826,0.55,2683.5,2682.7,0.9743]
[1748525513989,4.72973925,2683.6,2682.7,0.9743]
[1748525513990,1.0033,2683.6,2682.7,0.9743]
[1748525514186,3.72729534,2683.0,2682.7,0.9743]
[1748525514386,3.72710215,2683.1,2682.7,0.9743]
[1748525514597,3.72717458,2683.0,2682.6,0.62988458]
[1748525514799,0.55,2683.3,2682.6,0.62988458]
[1748525515132,4.27677938,2683.3,2682.6,0.62988458]
[1748525515431,4.017,2683.2,2682.6,0.62988458]
[1748525515603,3.72738552,2682.9,2682.6,0.62988458]
[1748525515801,3.72757196,2682.8,2682.6,0.62988458]
[1748525516287,3.72758787,2682.7,2682.6,0.62988458]
[1748525517807,4.27758787,2682.7,2682.6,0.62988458]
[1748525519539,9.40858787,2682.7,2682.6,0.62988458]
[1748525519913,9.40958787,2682.7,2682.6,0.62988458]
[1748525523470,9.40958787,2682.7,2682.6,0.31686305]
[1748525523471,53.43873787,2682.7,2682.6,0.31686305]
[1748525523677,53.43873787,2682.7,2682.1,0.05]
[1748525523678,5.36018275,2682.2,2682.1,0.05]
[1748525525366,6.47418275,2682.2,2682.1,0.05]
[1748525525565,6.2139,2682.2,2682.1,0.05]
[1748525525765,8.86028275,2682.2,2682.1,0.05]
[1748525525975,9.41028275,2682.2,2682.1,0.05]
[1748525526144,10.47648275,2682.2,2682.1,0.05]
[1748525526656,18.83001245,2682.2,2682.1,0.05]
[1748525526856,32.72028245,2682.2,2682.1,0.05]
[1748525527056,32.51629345,2682.2,2682.1,0.05]
[1748525527755,32.86965837,2682.2,2682.1,0.05]
[1748525528467,3.72967328,2681.2,2681.1,0.05]
[1748525528676,7.74767328,2681.2,2681.1,0.05]
[1748525528857,8.29767328,2681.2,2681.1,0.05]
[1748525529176,34.15947428,2681.2,2681.1,0.05]
[1748525529348,3.73106484,2680.2,2680.1,0.05]
[1748525529568,7.57076484,2680.2,2680.1,0.05]
[1748525529733,4.018,2680.2,2680.1,0.05]
[1748525530574,4.84416479,2680.9,2680.1,0.05]
[1748525530778,5.133,2680.9,2680.2,1.0307]
[1748525530935,3.73030935,2680.8,2680.2,1.0307]
[1748525531136,0.55,2680.3,2680.1,0.05]
[1748525531376,0.55,2680.3,2679.1,0.05]
[1748525531377,1.0286,2679.5,2679.1,0.05]
[1748525531576,5.151,2679.4,2679.1,0.05]
[1748525531738,4.037,2679.3,2679.1,0.05]
[1748525532078,4.039,2679.3,2679.1,0.05]
[1748525532460,7.77142403,2679.3,2679.1,0.05]
[1748525532637,3.73245744,2679.2,2679.1,0.05]
[1748525533178,5.34385744,2679.2,2679.1,0.05]
[1748525533439,13.34385744,2679.2,2679.1,0.05]
[1748525533576,16.07499544,2679.2,2679.1,0.05]
[1748525533779,13.34385744,2679.2,2679.1,0.05]
[1748525534242,20.68079944,2679.2,2679.1,0.05]
[1748525534542,21.15821344,2679.2,2679.1,0.05]
[1748525535218,16.26956844,2679.2,2679.1,0.05]
[1748525535375,3.73318248,2678.7,2677.7,1.84904193]
[1748525535578,0.55,2679.0,2677.1,3.99831773]
[1748525535882,3.73344656,2678.5,2677.2,1.39983177]
[1748525536107,4.039,2678.4,2677.3,1.84904193]
[1748525536311,7.7725772,2678.4,2677.3,2.21861354]
[1748525536625,7.7725772,2678.4,2677.3,0.36957161]
[1748525536626,8.88662431,2678.4,2677.3,0.36957161]
[1748525536808,5.153,2678.4,2677.2,11.39983177]
[1748525537137,5.153,2678.4,2677.3,1.35152948]
[1748525537419,8.88662381,2678.4,2677.3,1.35152948]
[1748525537920,5.153,2678.4,2677.3,1.35152948]
[1748525538128,5.153,2678.4,2677.2,1.84904193]
[1748525538438,8.88657838,2678.4,2677.3,0.078]
[1748525539131,5.153,2678.4,2677.3,0.078]
[1748525540129,5.153,2678.4,2677.3,0.44820591]
[1748525540291,5.153,2678.4,2677.3,0.078]
[1748525540492,5.153,2678.4,2677.4,0.95200588]
[1748525540817,4.028,2678.3,2677.5,0.078]
[1748525541411,1.0212,2678.9,2677.5,0.078]
[1748525541627,3.73312336,2678.8,2677.4,1.03000588]
[1748525541842,1.0212,2678.9,2677.3,0.3712619]
[1748525541843,4.7541134,2678.9,2677.5,1.84904193]
[1748525542002,1.0469,2679.5,2678.3,1.84904193]
[1748525542203,1.0469,2679.5,2678.0,0.078]
[1748525542204,3.73247816,2679.2,2678.0,0.078]
[1748525542522,3.73247816,2679.2,2678.2,0.078]
[1748525542523,4.029,2679.1,2678.2,0.078]
[1748525542722,3.73293242,2678.9,2678.2,0.078]
[1748525543010,4.029,2679.1,2678.2,0.078]
[1748525543011,5.145,2678.8,2678.2,0.078]
[1748525543221,4.03,2678.7,2678.2,0.078]
[1748525543430,4.029,2678.8,2678.2,0.078]
[1748525544003,5.32907771,2679.5,2678.2,0.078]
[1748525544243,3.73251268,2679.2,2678.2,0.078]
[1748525544427,0.55,2679.4,2678.2,0.078]
[1748525544634,8.87867281,2679.1,2678.2,0.078]
[1748525544835,3.73225693,2679.4,2678.2,0.078]
[1748525545011,4.77897466,2679.5,2678.2,0.69110077]
[1748525545343,8.87725563,2679.4,2678.2,0.69110077]
[1748525545566,1.0469,2679.5,2678.2,0.69110077]
[1748525545725,1.115,2679.4,2678.2,0.61310077]
[1748525546041,3.73240758,2679.3,2678.3,0.078]
[1748525546204,3.73246017,2679.2,2678.3,0.078]
[1748525546409,3.73235352,2679.3,2678.3,0.078]
[1748525546661,3.7326293,2679.1,2678.2,0.46987415]
[1748525546869,3.73305136,2678.8,2677.6,9.84904193]
[1748525547171,4.027,2678.9,2677.8,0.46987415]
[1748525547309,3.73302491,2678.8,2677.8,0.46987415]
[1748525547668,3.73325331,2678.7,2677.8,0.46987415]
[1748525547808,3.73350439,2678.5,2677.4,1.84904193]
[1748525548009,3.73350439,2678.5,2677.4,2.31891608]
[1748525548206,3.73359138,2678.4,2677.4,2.31891608]
[1748525548524,3.7338417,2678.3,2677.4,2.31891608]
[1748525548843,4.026,2678.2,2677.4,2.31891608]
[1748525549745,0.55,2678.7,2677.5,8.0]
[1748525549906,4.023,2678.6,2677.4,2.31891608]
[1748525550105,3.73372484,2678.3,2677.4,2.31891608]
[1748525550310,3.73364234,2678.4,2677.4,2.31891608]
[1748525550505,0.55,2678.5,2677.4,0.46987415]
[1748525550745,1.0516,2677.8,2677.1,0.05]
[1748525550931,3.73482726,2677.5,2677.1,0.05]
[1748525551128,3.7349723,2677.4,2677.1,0.05]
[1748525551329,5.148,2677.7,2677.1,0.05]
[1748525551527,3.73503613,2677.4,2677.1,0.05]
[1748525551837,3.73483969,2677.5,2677.1,0.05]
[1748525552142,3.7341456,2678.0,2677.1,0.05]
[1748525552143,0.55,2678.1,2677.1,0.05]
[1748525552368,3.73482216,2677.6,2677.1,0.05]
[1748525552575,3.73491414,2677.5,2677.1,0.05]
[1748525552738,1.5554,2677.4,2677.1,0.05]
[1748525552943,1.5554,2677.4,2676.4,0.73709473]
[1748525552944,3.7353853,2677.1,2676.4,0.32710255]
[1748525553485,4.85030706,2677.2,2676.4,0.32710255]
[1748525553633,4.85030706,2677.2,2676.4,0.70333906]
[1748525553634,4.04,2677.1,2676.4,0.70333906]
[1748525553833,4.04,2677.1,2676.4,0.32710255]
[1748525554256,1.115,2677.2,2676.4,0.32710255]
[1748525554257,4.04,2677.2,2676.4,0.32710255]
[1748525554567,4.04,2677.2,2676.4,0.70192056]
[1748525554740,1.0833,2677.7,2676.4,0.63860042]
[1748525555070,3.73545871,2677.1,2676.4,0.32710255]
[1748525555268,3.73579826,2676.9,2676.4,0.32710255]
[1748525555474,3.73574734,2676.9,2676.4,0.32710255]
[1748525555633,3.73493899,2677.5,2676.4,0.32710255]
[1748525555967,1.0833,2677.7,2676.4,0.70113666]
[1748525556173,4.044,2677.6,2676.5,0.25601889]
[1748525556331,3.73516487,2677.3,2676.4,0.73709473]
[1748525556531,1.5949,2677.5,2676.4,0.73709473]
[1748525556744,1.0449,2677.5,2676.4,0.32710255]
[1748525556969,3.73604236,2676.7,2676.4,0.32710255]
[1748525557270,3.73570327,2676.9,2676.4,0.32710255]
[1748525557271,4.051,2676.8,2676.4,0.32710255]
[1748525557457,3.73536898,2677.2,2676.4,0.32710255]
[1748525557644,3.73587643,2676.8,2676.4,0.32710255]
[1748525557848,3.73569097,2676.9,2676.4,0.32710255]
[1748525558039,5.178,2677.1,2676.4,0.32710255]
[1748525558040,3.73580394,2676.8,2676.4,0.32710255]
[1748525558233,5.178,2677.1,2676.4,0.32710255]
[1748525558471,3.73604775,2676.7,2676.4,0.32710255]
[1748525558869,4.051,2676.6,2676.4,0.32710255]
[1748525559072,3.73622267,2676.5,2676.4,0.32710255]
[1748525559273,8.91822267,2676.5,2676.4,0.32710255]
[1748525559434,3.73622267,2676.5,2676.4,0.32710255]
[1748525559636,8.91722267,2676.5,2676.4,0.32710255]
[1748525559855,9.26891048,2676.5,2676.4,0.32710255]
[1748525560051,8.14191048,2676.5,2676.4,0.32710255]
[1748525560266,8.14091048,2676.5,2676.4,0.32710255]
[1748525561150,8.69091048,2676.5,2676.4,0.32710255]
[1748525561346,8.69117943,2676.5,2676.4,0.32710255]
[1748525561974,4.08817943,2676.5,2676.4,0.32710255]
[1748525562151,5.10387943,2676.5,2676.4,0.32710255]
[1748525562351,3.7366415,2676.2,2676.1,0.05]
[1748525562592,9.82959826,2676.2,2676.1,0.05]
[1748525562791,16.09231326,2676.2,2676.1,0.05]
[1748525562996,14.69569456,2676.2,2676.1,0.05]
[1748525563307,54.28678113,2676.1,2676.0,8.23863636]
[1748525563590,68.92803789,2676.1,2676.0,8.23863636]
[1748525563889,67.43779189,2676.1,2676.0,8.23863636]
[1748525564092,10.92903789,2676.1,2676.0,8.23863636]
[1748525564295,10.92903789,2676.1,2675.1,0.4327]
[1748525564296,0.55,2675.2,2675.1,0.03594959]
[1748525564494,4.28943609,2674.2,2674.1,0.05]
[1748525564699,9.96674861,2674.2,2674.1,0.05]
[1748525564881,64.50044505,2674.2,2674.1,0.05]
[1748525565067,80.24077705,2674.2,2674.1,0.05]
[1748525565271,4.29013539,2673.7,2673.6,12.69524793]
[1748525565460,5.06802568,2673.7,2673.6,12.69524793]
[1748525565658,5.89953539,2673.7,2673.6,12.69524793]
[1748525565873,4.16853539,2673.7,2673.6,12.69524793]
[1748525566058,3.74013539,2673.7,2673.6,12.69524793]
[1748525566382,72.13971159,2673.7,2673.6,12.14524793]
[1748525566583,66.27619749,2673.7,2673.6,8.13034793]
[1748525566900,64.46120739,2673.7,2673.6,6.87806296]
[1748525567100,14.46120739,2673.7,2673.6,6.87806296]
[1748525567315,19.91409839,2673.7,2673.6,6.87806296]
[1748525567599,3.74013539,2673.7,2673.6,6.87806296]
[1748525567997,0.34949029,2673.8,2673.6,5.26817182]
[1748525568165,7.95413539,2673.7,2673.6,5.26817182]
[1748525568513,3.74013539,2673.7,2673.6,5.26817182]
[1748525569225,9.19213539,2673.7,2673.6,5.26817182]
[1748525569424,8.34719239,2673.7,2673.6,5.26817182]
[1748525569570,9.20713539,2673.7,2673.6,5.26817182]
[1748525569906,8.0,2674.4,2673.6,5.26817182]
[1748525570065,1.229,2673.9,2673.6,5.26817182]
[1748525570262,4.24,2673.8,2673.6,5.26817182]
[1748525570460,3.73957911,2674.1,2673.6,5.26817182]
[1748525570668,4.239,2674.0,2673.6,5.26817182]
[1748525570899,0.31012231,2674.3,2673.6,5.26817182]
[1748525571232,5.466,2674.2,2673.6,5.26817182]
[1748525571702,7.97658761,2674.1,2673.6,5.26817182]
[1748525571904,3.73949359,2674.2,2673.6,5.26817182]
[1748525572104,4.236,2674.1,2673.6,5.26817182]
[1748525572306,3.73978514,2674.0,2673.6,5.26817182]
[1748525572507,4.235,2673.9,2673.6,5.26817182]
[1748525572709,7.9749001,2673.9,2673.6,5.26817182]
[1748525572867,4.235,2673.9,2673.6,5.26817182]
[1748525573410,1.229,2674.1,2673.6,5.26817182]
[1748525573411,5.466,2673.8,2673.6,5.26817182]
[1748525573580,4.237,2673.7,2673.6,5.26817182]
[1748525573907,3.73926049,2674.4,2673.6,5.26817182]
[1748525574093,3.73954202,2674.2,2673.6,5.26817182]
[1748525574296,3.7392303,2674.4,2673.6,5.26817182]
[1748525574497,4.236,2674.1,2673.6,5.26817182]
[1748525574667,8.065,2674.5,2673.6,5.26817182]
[1748525574880,4.234,2674.4,2673.6,5.26817182]
[1748525575076,4.233,2674.3,2673.7,1.0717]
[1748525575330,4.233,2674.3,2673.6,5.26817182]
[1748525575526,3.73999766,2673.8,2673.6,5.26817182]
[1748525575727,7.98213539,2673.7,2673.6,5.26817182]
[1748525575932,7.98113539,2673.7,2673.6,5.26817182]
[1748525576227,3.74013539,2673.7,2673.6,5.26817182]
[1748525576433,7.98113539,2673.7,2673.6,5.26817182]
[1748525577076,1.229,2674.1,2673.6,5.26817182]
[1748525577516,0.68477264,2675.3,2673.6,5.26817182]
[1748525577517,1.229,2675.1,2673.7,9.0862]
[1748525577691,4.242,2675.0,2673.7,9.0862]
[1748525578117,3.73845751,2674.9,2673.7,9.0862]
[1748525578317,0.55,2674.8,2673.7,9.0862]
[1748525578546,0.31012231,2674.8,2673.7,1.0862]
[1748525578708,3.73976598,2674.0,2673.7,1.0862]
[1748525578891,4.243,2673.9,2673.7,1.0862]
[1748525579222,3.73999551,2673.8,2673.7,1.0862]
[1748525579392,4.243,2673.9,2673.7,1.0862]
[1748525579593,3.73999551,2673.8,2673.7,1.0862]
[1748525579792,3.73964341,2674.1,2673.7,1.0862]
[1748525580124,4.243,2674.0,2673.7,1.0862]
[1748525580505,3.73994776,2673.9,2673.7,1.0862]
[1748525580706,4.241,2673.9,2673.7,1.0862]
[1748525581036,0.5,2673.8,2673.7,1.0862]
[1748525581206,0.5,2673.8,2673.6,5.26817182]
[1748525581581,7.98094169,2673.9,2673.6,5.26817182]
[1748525581582,7.98094897,2673.9,2673.6,5.26817182]
[1748525581783,60.0,2674.7,2673.6,5.26817182]
[1748525581980,1.229,2674.6,2673.7,1.0516]
[1748525582437,4.238,2674.5,2673.8,1.0516]
[1748525582740,0.31012231,2674.8,2673.8,1.0516]
[1748525582894,4.239,2674.7,2673.8,1.0516]
[1748525583098,4.96781711,2675.4,2673.8,1.0516]
[1748525583099,1.16153587,2676.0,2674.6,8.0]
[1748525583337,4.252,2676.1,2675.1,1.22269396]
[1748525583512,1.23,2676.8,2675.1,1.22269396]
[1748525583513,3.73596231,2676.7,2675.4,1.8590522]
[1748525583841,1.23,2676.8,2675.2,9.31513712]
[1748525583842,4.252,2676.1,2675.7,1.0142]
[1748525584023,4.96590314,2676.8,2675.7,1.0142]
[1748525584024,3.73592055,2676.8,2675.7,1.0142]
[1748525584209,4.249,2676.0,2675.7,1.0142]
[1748525584403,0.05,2675.9,2675.7,1.0142]
[1748525586052,3.73563358,2677.0,2675.7,1.0142]
[1748525586253,4.28337384,2676.8,2675.7,1.0142]
[1748525586430,3.73605396,2676.7,2675.8,0.4228638]
[1748525586745,4.246,2676.8,2675.5,0.4228638]
[1748525586928,7.98180879,2676.8,2675.6,0.4228638]
[1748525587128,3.73585489,2676.8,2675.6,0.4228638]
[1748525587348,0.05,2676.9,2675.7,1.8590522]
[1748525587518,4.244,2676.7,2675.8,0.4228638]
[1748525587731,0.05,2676.9,2675.8,0.4228638]
[1748525588051,0.05,2676.9,2676.3,3.73644012]
[1748525588235,0.05,2676.9,2676.4,0.4228638]
[1748525588606,0.05,2676.9,2676.7,0.55]
[1748525588777,0.05,2676.9,2676.8,8.0]
[1748525588914,0.43653301,2677.4,2677.0,1.8590522]
[1748525589115,0.43653301,2677.4,2677.2,8.0]
[1748525589426,0.14847285,2677.4,2677.3,0.4228638]
[1748525589738,0.14847285,2677.4,2677.3,1.5339638]
[1748525589911,0.14847285,2677.4,2677.3,1.1111]
[1748525590116,0.05,2677.9,2677.3,1.1111]
[1748525590423,0.05,2677.9,2677.4,8.0]
[1748525590856,0.57791836,2678.7,2677.8,1.5906]
[1748525591075,0.57791836,2678.7,2678.5,1.0406]
[1748525591275,0.34896231,2679.6,2678.5,1.0406]
[1748525591276,0.34896231,2679.6,2678.5,8.0]
[1748525591548,0.34896231,2679.6,2678.6,1.0406]
[1748525592113,7.97427861,2679.4,2678.6,1.0406]
[1748525592345,3.73237549,2679.3,2678.6,1.0406]
[1748525592520,3.73207761,2679.5,2678.6,1.0406]
[1748525592521,3.73212372,2679.5,2678.6,1.0406]
[1748525592848,4.242,2679.2,2678.6,1.0406]
[1748525593055,0.34896231,2679.6,2678.8,1.8590522]
[1748525593215,0.34896231,2679.6,2679.0,8.0]
[1748525593423,0.34896231,2679.6,2678.9,1.0307]
[1748525594199,0.34896231,2679.6,2678.9,2.8897522]
[1748525594681,0.34896231,2679.6,2679.3,7.79811913]
[1748525594924,0.34896231,2679.6,2679.3,2.4090522]
[1748525595209,0.34896231,2679.6,2679.5,0.55]
[1748525595340,0.34896231,2679.6,2679.5,12.005108]
[1748525595538,0.05,2679.9,2679.6,0.55]
[1748525595737,0.05,2679.9,2679.8,1.0816]
[1748525596223,0.03737384,2680.7,2679.8,1.6316]
[1748525596486,0.35267824,2680.8,2680.3,1.8590522]
[1748525596639,0.35267824,2680.8,2680.4,1.605]
[1748525596839,0.35267824,2680.8,2680.4,13.33570615]
[1748525597040,0.35267824,2680.8,2680.4,9.055]
[1748525597243,0.63099258,2680.9,2680.5,1.58198196]